fUST/lending_fUST_20260108
["ID","MTS","AMOUNT","RATE_DAILY","PERIOD"]
[400733997,1767803448838,-567.9849075,0.00027397,2]
[400733998,1767803448849,-500.0,0.00027397,2]
[400733999,1767803448858,-500.0,0.00027397,2]
[400734000,1767803448867,-500.0,0.00027397,2]
[400734001,1767803448876,-500.0,0.00027397,2]
[400734002,1767803448887,-580.02613712,0.00027397,2]
[400734003,1767803448897,-500.0,0.00027397,2]
[400734004,1767803448906,-444.92832062,0.00027397,2]
[400734005,1767803448916,-500.0,0.00027397,2]
[400734006,1767803448925,-457.91232299,0.00027397,2]
[400734007,1767803448935,-604.09,0.00027397,2]
[400734008,1767803448944,-500.0,0.00027397,2]
[400734009,1767803448954,-500.0,0.00027397,2]
[400734010,1767803448963,-500.0,0.00027397,2]
[400734011,1767803448972,-500.0,0.00027397,2]
[400734012,1767803448982,-1000.0,0.00027397,2]
[400734013,1767803448992,-596.51574051,0.00027397,2]
[400734014,1767803449002,-500.0,0.00027397,2]
[400734015,1767803449011,-500.0,0.00027397,2]
[400734016,1767803449021,-500.0,0.00027397,2]
[400734017,1767803449032,-500.0,0.00027397,2]
[400734018,1767803449041,-500.0,0.00027397,2]
[400734019,1767803449050,-500.0,0.00027397,2]
[400734020,1767803449060,-500.0,0.00027397,2]
[400734021,1767803449069,-500.0,0.00027397,2]
[400734022,1767803449078,-500.0,0.00027397,2]
[400734023,1767803449088,-500.0,0.00027397,2]
[400734024,1767803449097,-500.0,0.00027397,2]
[400734025,1767803449107,-500.0,0.00027397,2]
[400734026,1767803449118,-500.0,0.00027397,2]
[400734027,1767803449128,-500.0,0.00027397,2]
[400734028,1767803449138,-502.05979072,0.00027397,2]
[400734029,1767803449148,-395.05101426,0.00027397,2]
[400734030,1767803449158,-500.0,0.00027397,2]
[400734031,1767803449167,-500.0,0.00027397,2]
[400734032,1767803449176,-500.0,0.00027397,2]
[400734033,1767803449186,-500.0,0.00027397,2]
[400734034,1767803449196,-524.71,0.00027397,2]
[400734035,1767803449206,-500.0,0.00027397,2]
[400734036,1767803449215,-2207.13,0.00027397,2]
[400734037,1767803449225,-500.0,0.00027397,2]
[400734038,1767803449234,-500.0,0.00027397,2]
[400734039,1767803449243,-591.35,0.00027397,2]
[400734040,1767803449252,-500.0,0.00027397,2]
[400734041,1767803449262,-500.0,0.00027397,2]
[400734042,1767803449271,-500.0,0.00027397,2]
[400734043,1767803449281,-500.0,0.00027397,2]
[400734044,1767803449290,-500.0,0.00027397,2]
[400734045,1767803449299,-500.0,0.00027397,2]
[400734046,1767803449308,-366.0246983,0.00027397,2]
[400734047,1767803449317,-271.90972173,0.00027397,2]
[400734048,1767803449327,-500.0,0.00027397,2]
[400734049,1767803449337,-500.0,0.00027397,2]
[400734050,1767803449347,-200.0,0.00027397,2]
[400734051,1767803449357,-500.0,0.00027397,2]
[400734052,1767803449367,-3196.09,0.00027397,2]
[400734053,1767803449376,-745.77,0.00027397,2]
[400734054,1767803449385,-500.0,0.00027397,2]
[400734055,1767803449395,-500.0,0.00027397,2]
[400734056,1767803449404,-500.0,0.00027397,2]
[400734057,1767803449414,-297.98489673,0.00027397,2]
[400734058,1767803449423,-500.0,0.00027397,2]
[400734059,1767803449432,-500.0,0.00027397,2]
[400734060,1767803449441,-579.38,0.00027397,2]
[400734061,1767803449450,-500.0,0.00027397,2]
[400734062,1767803449459,-2058.03,0.00027397,2]
[400734063,1767803449469,-222.39624112,0.00027397,2]
[400734064,1767803449479,-500.0,0.00027397,2]
[400734065,1767803449488,-500.0,0.00027397,2]
[400734066,1767803449498,-500.0,0.00027397,2]
[400734067,1767803449506,-500.0,0.00027397,2]
[400734068,1767803449516,-500.0,0.00027397,2]
[400734069,1767803449525,-500.0,0.00027397,2]
[400734070,1767803449535,-500.0,0.00027397,2]
[400734071,1767803449544,-500.0,0.00027397,2]
[400734072,1767803449553,-284.84999184,0.00027397,2]
[400734073,1767803449563,-500.0,0.00027397,2]
[400734074,1767803449572,-2213.78,0.00027397,2]
[400734075,1767803449581,-500.0,0.00027397,2]
[400734076,1767803449590,-604.98079677,0.00027397,2]
[400734077,1767803449599,-301.85499701,0.00027397,2]
[400734078,1767803449608,-463.66455521,0.00027397,2]
[400734079,1767803449617,-500.0,0.00027397,2]
[400734080,1767803449626,-500.0,0.00027397,2]
[400734081,1767803449635,-526.23,0.00027397,2]
[400734082,1767803449644,-500.0,0.00027397,2]
[400734083,1767803449654,-500.0,0.00027397,2]
[400734084,1767803449664,-500.0,0.00027397,2]
[400734085,1767803449673,-500.0,0.00027397,2]
[400734086,1767803449682,-500.0,0.00027397,2]
[400734087,1767803449692,-276.07693905,0.00027397,2]
[400734088,1767803449701,-500.0,0.00027397,2]
[400734089,1767803449710,-500.0,0.00027397,2]
[400734090,1767803449720,-654.46,0.00027397,2]
[400734091,1767803449729,-271.00434571,0.00027397,2]
[400734092,1767803449739,-500.0,0.00027397,2]
[400734093,1767803449748,-500.0,0.00027397,2]
[400734094,1767803449757,-500.0,0.00027397,2]
[400734095,1767803449767,-290.50830417,0.00027397,2]
[400734096,1767803449776,-500.0,0.00027397,2]
[400734097,1767803449786,-500.0,0.00027397,2]
[400734098,1767803449795,-500.0,0.00027397,2]
[400734099,1767803449806,-500.0,0.00027397,2]
[400734100,1767803449817,-500.0,0.00027397,2]
[400734101,1767803449827,-510.72530276,0.00027397,2]
[400734102,1767803449836,-552.67,0.00027397,2]
[400734103,1767803449848,-500.0,0.00027397,2]
[400734104,1767803449858,-500.0,0.00027397,2]
[400734105,1767803449867,-500.0,0.00027397,2]
[400734106,1767803449877,-500.0,0.00027397,2]
[400734107,1767803449886,-322.62576743,0.00027397,2]
[400734108,1767803449895,-2139.48,0.00027397,2]
[400734109,1767803449905,-219.45873194,0.00027397,2]
[400734110,1767803449918,-500.0,0.00027397,2]
[400734111,1767803449927,-500.0,0.00027397,2]
[400734112,1767803449936,-500.0,0.00027397,2]
[400734113,1767803449946,-1559.89,0.00027397,2]
[400734114,1767803449955,-500.0,0.00027397,2]
[400734115,1767803449965,-500.0,0.00027397,2]
[400734116,1767803450014,-500.0,0.00027397,2]
[400734117,1767803450023,-642.62,0.00027397,2]
[400734118,1767803450033,-500.0,0.00027397,2]
[400734119,1767803450043,-836.74,0.00027397,2]
[400734120,1767803450052,-500.0,0.00027397,2]
[400734121,1767803450062,-518.82361923,0.00027397,2]
[400734122,1767803450072,-500.0,0.00027397,2]
[400734123,1767803450081,-500.0,0.00027397,2]
[400734124,1767803450091,-500.0,0.00027397,2]
[400734125,1767803450100,-503.91333035,0.00027397,2]
[400734126,1767803450110,-10149.27,0.00027397,2]
[400734127,1767803450119,-650.0,0.00027397,5]
[400734128,1767803450129,-500.0,0.00027517,7]
[400734129,1767803450139,-952.14039252,0.00027537,2]
[400734130,1767803450149,-168.0,0.00027546,2]
[400734131,1767803450158,-168.0,0.00027593,7]
[400734132,1767803450167,-154.28,0.000276,7]
[400734133,1767803450177,-1041.66666667,0.000276,30]
[400734134,1767803450186,-168.0,0.00027669,2]
[400734135,1767803450196,-2323.61813807,0.00027671,2]
[400734136,1767803450206,-625.83799618,0.00027671,2]
[400734137,1767803450216,-500.0,0.00027671,2]
[400734138,1767803450225,-639.26401329,0.00027671,2]
[400734139,1767803450235,-500.0,0.00027671,2]
[400734141,1767803450244,-500.0,0.00027671,2]
[400734143,1767803450254,-160.28123873,0.00027671,2]
[400734145,1767803450263,-500.54956365,0.00027671,2]
[400734146,1767803450273,-500.0,0.00027671,2]
[400734148,1767803450283,-500.0,0.00027671,2]
[400734149,1767803450292,-500.0,0.00027671,2]
[400734150,1767803450302,-500.0,0.00027671,2]
[400734151,1767803450311,-500.0,0.00027671,2]
[400734152,1767803450320,-225.8348066,0.00027671,2]
[400734153,1767803450329,-466.76878616,0.00027671,2]
[400734154,1767803450338,-500.0,0.00027671,2]
[400734155,1767803450347,-500.0,0.00027671,2]
[400734156,1767803450356,-500.0,0.00027671,2]
[400734157,1767803450365,-175.05106907,0.00027671,2]
[400734158,1767803450375,-500.0,0.00027671,2]
[400734159,1767803450384,-500.0,0.00027671,2]
[400734160,1767803450393,-627.95570094,0.00027671,2]
[400734161,1767803450402,-595.73771837,0.00027671,2]
[400734162,1767803450411,-500.0,0.00027671,2]
[400734163,1767803450420,-500.0,0.00027671,2]
[400734164,1767803450430,-500.0,0.00027671,2]
[400734165,1767803450439,-500.0,0.00027671,2]
[400734166,1767803450449,-500.0,0.00027671,2]
[400734167,1767803450458,-500.0,0.00027671,2]
[400734168,1767803450468,-258.9056669,0.00027671,2]
[400734169,1767803450477,-500.0,0.00027671,2]
[400734170,1767803450486,-500.0,0.00027671,2]
[400734171,1767803450495,-410.65012671,0.00027671,2]
[400734172,1767803450504,-500.0,0.00027671,2]
[400734173,1767803450513,-500.0,0.00027671,2]
[400734174,1767803450523,-500.0,0.00027671,2]
[400734175,1767803450533,-631.64312426,0.00027671,2]
[400734176,1767803450542,-500.0,0.00027671,2]
[400734177,1767803450551,-500.0,0.00027671,2]
[400734178,1767803450561,-500.0,0.00027671,2]
[400734179,1767803450571,-500.0,0.00027671,2]
[400734180,1767803450580,-1000.0,0.00027671,2]
[400734181,1767803450589,-500.0,0.00027671,2]
[400734182,1767803450599,-500.0,0.00027671,2]
[400734183,1767803450609,-500.0,0.00027671,2]
[400734184,1767803450618,-500.31658857,0.00027671,2]
[400734185,1767803450628,-500.0,0.00027671,2]
[400734186,1767803450637,-453.32692781,0.00027671,2]
[400734187,1767803450646,-500.0,0.00027671,2]
[400734188,1767803450656,-500.0,0.00027671,2]
[400734189,1767803450665,-500.0,0.00027671,2]
[400734190,1767803450674,-500.0,0.00027671,2]
[400734191,1767803450683,-500.0,0.00027671,2]
[400734192,1767803450692,-500.0,0.00027671,2]
[400734193,1767803450702,-500.0,0.00027671,2]
[400734194,1767803450712,-500.0,0.00027671,2]
[400734195,1767803450722,-636.31426963,0.00027671,2]
[400734196,1767803450731,-280.42086481,0.00027671,2]
[400734197,1767803450740,-500.0,0.00027671,2]
[400734198,1767803450750,-2731.12,0.00027671,2]
[400734199,1767803450759,-500.0,0.00027671,2]
[400734200,1767803450768,-500.0,0.00027671,2]
[400734201,1767803450777,-378.7384185,0.00027671,2]
[400734202,1767803450789,-500.0,0.00027671,2]
[400734203,1767803450798,-543.28293337,0.00027671,2]
[400734204,1767803450809,-500.0,0.00027671,2]
[400734205,1767803450819,-500.0,0.00027671,2]
[400734206,1767803450828,-500.0,0.00027671,2]
[400734207,1767803450838,-604.09,0.00027671,2]
[400734208,1767803450846,-612.30881226,0.00027671,2]
[400734209,1767803450857,-500.0,0.00027671,2]
[400734210,1767803450867,-500.0,0.00027671,2]
[400734211,1767803450876,-1000.0,0.00027671,2]
[400734212,1767803450887,-464.50837596,0.00027671,2]
[400734213,1767803450896,-150.96099625,0.00027671,2]
[400734214,1767803450905,-253.66093416,0.00027671,2]
[400734215,1767803450914,-500.0,0.00027671,2]
[400734216,1767803450924,-500.0,0.00027671,2]
[400734218,1767803450933,-490.19727701,0.00027671,2]
[400734219,1767803450942,-500.0,0.00027671,2]
[400734220,1767803450951,-500.0,0.00027671,2]
[400734221,1767803450960,-500.0,0.00027671,2]
[400734222,1767803450970,-500.0,0.00027671,2]
[400734223,1767803450979,-500.0,0.00027671,2]
[400734225,1767803450988,-500.0,0.00027671,2]
[400734227,1767803450998,-500.0,0.00027671,2]
[400734228,1767803451007,-500.0,0.00027671,2]
[400734229,1767803451016,-500.0,0.00027671,2]
[400734230,1767803451026,-276.39961175,0.00027671,2]
[400734232,1767803451036,-524.71,0.00027671,2]
[400734233,1767803451046,-500.0,0.00027671,2]
[400734234,1767803451055,-2207.13,0.00027671,2]
[400734235,1767803451065,-500.0,0.00027671,2]
[400734236,1767803451074,-500.0,0.00027671,2]
[400734237,1767803451084,-591.35,0.00027671,2]
[400734238,1767803451093,-500.0,0.00027671,2]
[400734239,1767803451103,-182.16078604,0.00027671,2]
[400734241,1767803451112,-500.0,0.00027671,2]
[400734243,1767803451121,-500.0,0.00027671,2]
[400734245,1767803451130,-500.0,0.00027671,2]
[400734246,1767803451140,-500.0,0.00027671,2]
[400734247,1767803451149,-604.4750424,0.00027671,2]
[400734248,1767803451160,-500.0,0.00027671,2]
[400734249,1767803451170,-200.0,0.00027671,2]
[400734250,1767803451180,-500.0,0.00027671,2]
[400734251,1767803451189,-3196.09,0.00027671,2]
[400734252,1767803451199,-745.77,0.00027671,2]
[400734253,1767803451208,-500.0,0.00027671,2]
[400734254,1767803451218,-158.94735849,0.00027671,2]
[400734255,1767803451228,-500.0,0.00027671,2]
[400734256,1767803451237,-577.42065993,0.00027671,2]
[400734257,1767803451246,-500.0,0.00027671,2]
[400734258,1767803451255,-579.38,0.00027671,2]
[400734259,1767803451264,-500.0,0.00027671,2]
[400734260,1767803451273,-2058.03,0.00027671,2]
[400734261,1767803451282,-500.0,0.00027671,2]
[400734262,1767803451291,-500.0,0.00027671,2]
[400734263,1767803451300,-500.0,0.00027671,2]
[400734264,1767803451309,-500.0,0.00027671,2]
[400734265,1767803451318,-201.43000809,0.00027671,2]
[400734266,1767803451328,-510.46446643,0.00027671,2]
[400734267,1767803451337,-500.0,0.00027671,2]
[400734268,1767803451347,-500.0,0.00027671,2]
[400734269,1767803451356,-500.0,0.00027671,2]
[400734270,1767803451366,-500.0,0.00027671,2]
[400734271,1767803451376,-500.0,0.00027671,2]
[400734272,1767803451384,-500.0,0.00027671,2]
[400734273,1767803451394,-526.23,0.00027671,2]
[400734274,1767803451402,-500.0,0.00027671,2]
[400734275,1767803451411,-500.0,0.00027671,2]
[400734276,1767803451421,-275.94591395,0.00027671,2]
[400734277,1767803451430,-254.30157139,0.00027671,2]
[400734278,1767803451439,-319.8560238,0.00027671,2]
[400734279,1767803451449,-151.0,0.00027671,7]
[400734280,1767803451459,-654.46,0.00027671,2]
[400734281,1767803451469,-288.39803088,0.00027671,2]
[400734282,1767803451478,-500.0,0.00027671,2]
[400734283,1767803451487,-500.0,0.00027671,2]
[400734284,1767803451497,-274.48276996,0.00027671,2]
[400734285,1767803451507,-500.0,0.00027671,2]
[400734286,1767803451516,-500.0,0.00027671,2]
[400734287,1767803451526,-151.0,0.00027671,7]
[400734288,1767803451536,-500.0,0.00027671,2]
[400734289,1767803451545,-500.0,0.00027671,2]
[400734290,1767803451554,-500.0,0.00027671,2]
[400734291,1767803451564,-552.67,0.00027671,2]
[400734292,1767803451573,-1248.257541,0.00027671,7]
[400734293,1767803451583,-1248.257541,0.00027671,7]
[400734294,1767803451592,-500.0,0.00027671,2]
[400734295,1767803451602,-1248.257541,0.00027671,7]
[400734296,1767803451612,-500.0,0.00027671,2]
[400734297,1767803451621,-151.0,0.00027671,7]
[400734298,1767803451630,-1248.257541,0.00027671,7]
[400734299,1767803451640,-500.0,0.00027671,2]
[400734300,1767803451650,-2139.48,0.00027671,2]
[400734301,1767803451660,-276.74180123,0.00027671,2]
[400734302,1767803451670,-500.0,0.00027671,2]
[400734303,1767803451680,-151.0,0.00027671,7]
[400734304,1767803451690,-500.0,0.00027671,2]
[400734305,1767803451700,-1559.89,0.00027671,2]
[400734306,1767803451709,-500.0,0.00027671,2]
[400734307,1767803451719,-500.0,0.00027671,2]
[400734308,1767803451728,-642.62,0.00027671,2]
[400734309,1767803451739,-500.0,0.00027671,2]
[400734310,1767803451749,-836.74,0.00027671,2]
[400734311,1767803451758,-500.0,0.00027671,2]
[400734312,1767803451768,-151.0,0.00027671,7]
[400734313,1767803451777,-151.0,0.00027671,7]
[400734314,1767803451789,-151.0,0.00027671,7]
[400734315,1767803451799,-454.81165634,0.00027671,2]
[400734316,1767803451810,-500.0,0.00027671,2]
[400734317,1767803451819,-578.25191146,0.00027671,2]
[400734318,1767803451829,-10149.27,0.00027671,2]
[400734319,1767803451838,-411.0,0.00027671,14]
[400734320,1767803451849,-931.06,0.000277,7]
[400734322,1767803451858,-1241.223347,0.000277,2]
[400734324,1767803451868,-168.0,0.00027709,2]
[400734326,1767803451879,-168.0,0.00027725,2]
[400734327,1767803451889,-2773.56790519,0.00027819,2]
[400734329,1767803451899,-574.12855637,0.00027819,2]
[400734330,1767803451909,-16542.72179331,0.00027819,2]
[400734331,1767803451919,-168.0,0.00027822,2]
[400734332,1767803451930,-7539.04750324,0.00027845,2]
[400734333,1767803451939,-3595.19947151,0.00027904,2]
[400734334,1767803451949,-500.0,0.00027914,7]
[400734335,1767803451958,-600.0,0.00027944,30]
[400734336,1767803451969,-2323.61813807,0.00027945,2]
[400734337,1767803451979,-500.0,0.00027945,2]
[400734338,1767803451988,-500.0,0.00027945,2]
[400734340,1767803451998,-500.0,0.00027945,2]
[400734342,1767803452007,-500.0,0.00027945,2]
[400734344,1767803452017,-500.0,0.00027945,2]
[400734346,1767803452027,-500.0,0.00027945,2]
[400734347,1767803452038,-500.0,0.00027945,2]
[400734349,1767803452047,-299.58088726,0.00027945,2]
[400734350,1767803452057,-500.0,0.00027945,2]
[400734351,1767803452066,-500.0,0.00027945,2]
[400734352,1767803452075,-500.0,0.00027945,2]
[400734353,1767803452085,-193.081788,0.00027945,7]
[400734354,1767803452096,-151.0,0.00027945,7]
[400734355,1767803452105,-151.0,0.00027945,7]
[400734356,1767803452115,-151.0,0.00027945,7]
[400734357,1767803452125,-500.0,0.00027945,2]
[400734359,1767803452135,-500.0,0.00027945,2]
[400734361,1767803452144,-500.0,0.00027945,2]
[400734362,1767803452153,-500.0,0.00027945,2]
[400734363,1767803452162,-151.0,0.00027945,7]
[400734364,1767803452171,-500.0,0.00027945,2]
[400734365,1767803452181,-500.0,0.00027945,2]
[400734366,1767803452190,-500.0,0.00027945,2]
[400734368,1767803452199,-500.0,0.00027945,2]
[400734369,1767803452208,-500.0,0.00027945,2]
[400734370,1767803452218,-500.0,0.00027945,2]
[400734371,1767803452227,-500.0,0.00027945,2]
[400734372,1767803452237,-500.0,0.00027945,2]
[400734373,1767803452246,-500.0,0.00027945,2]
[400734374,1767803452255,-151.0,0.00027945,7]
[400734375,1767803452264,-151.0,0.00027945,7]
[400734376,1767803452274,-646.93909116,0.00027945,2]
[400734377,1767803452283,-151.0,0.00027945,7]
[400734378,1767803452294,-500.0,0.00027945,2]
[400734379,1767803452304,-500.0,0.00027945,2]
[400734380,1767803452313,-500.0,0.00027945,2]
[400734381,1767803452323,-1000.0,0.00027945,2]
[400734382,1767803452333,-500.0,0.00027945,2]
[400734383,1767803452342,-559.85850789,0.00027945,2]
[400734384,1767803452352,-151.0,0.00027945,7]
[400734385,1767803452361,-500.0,0.00027945,2]
[400734386,1767803452372,-151.0,0.00027945,7]
[400734387,1767803452381,-500.0,0.00027945,2]
[400734388,1767803452391,-500.0,0.00027945,2]
[400734389,1767803452400,-500.0,0.00027945,2]
[400734390,1767803452410,-500.0,0.00027945,2]
[400734391,1767803452419,-500.0,0.00027945,2]
[400734392,1767803452428,-151.0,0.00027945,7]
[400734393,1767803452438,-151.0,0.00027945,7]
[400734394,1767803452448,-151.0,0.00027945,7]
[400734395,1767803452458,-500.0,0.00027945,2]
[400734396,1767803452467,-151.0,0.00027945,7]
[400734397,1767803452477,-279.168614,0.00027945,7]
[400734398,1767803452488,-578.43487255,0.00027945,2]
[400734399,1767803452498,-382.78500282,0.00027945,2]
[400734400,1767803452507,-500.0,0.00027945,2]
[400734401,1767803452517,-500.0,0.00027945,2]
[400734402,1767803452527,-2731.12,0.00027945,2]
[400734403,1767803452537,-500.0,0.00027945,2]
[400734404,1767803452547,-500.0,0.00027945,2]
[400734405,1767803452556,-500.0,0.00027945,2]
[400734406,1767803452566,-151.0,0.00027945,7]
[400734407,1767803452575,-500.0,0.00027945,2]
[400734408,1767803452585,-458.82741371,0.00027945,2]
[400734409,1767803452595,-500.0,0.00027945,2]
[400734410,1767803452605,-604.09,0.00027945,2]
[400734411,1767803452615,-151.0,0.00027945,7]
[400734412,1767803452624,-500.0,0.00027945,2]
[400734413,1767803452634,-151.0,0.00027945,7]
[400734414,1767803452643,-263.72597343,0.00027945,2]
[400734427,1767803523542,172.41,0.00011725,2]
[400734466,1767803601837,159.24,0.00011778,2]
[400734617,1767803880130,214.79,6.993e-05,7]
[400734654,1767803949888,174.66,0.00011722,2]
[400734660,1767803979517,-203.77,0.00012454,2]
[400734661,1767803979545,-2154.62645012,0.00013087,2]
[400734662,1767803979573,-500.0,0.0001315,2]
[400734663,1767803979605,-500.0,0.0001315,2]
[400734664,1767803979640,-994.68142797,0.0001315,2]
[400734665,1767803979672,-299.17281585,0.0001315,2]
[400734666,1767803985393,-695.50861212,0.0001315,2]
[400734667,1767803985423,-994.68142797,0.0001315,2]
[400734668,1767803985453,-227.69091709,0.0001315,2]
[400734669,1767803985484,-321.41232581,0.0001315,2]
[400734670,1767803985515,-994.68142797,0.0001315,2]
[400734671,1767803985545,-994.68142797,0.0001315,2]
[400734672,1767803985575,-548.01629417,0.0001315,2]
[400734673,1767803991481,-446.6651338,0.0001315,2]
[400734674,1767803991510,-994.68142797,0.0001315,2]
[400734675,1767803991538,-500.0,0.0001315,2]
[400734676,1767803991567,-994.68142797,0.0001315,2]
[400734677,1767803991597,-994.68142797,0.0001315,2]
[400734678,1767803991626,-994.68142797,0.0001315,2]
[400734833,1767804291562,158.87,0.00011778,2]
[400735231,1767804557163,-171.19,0.00012498,2]
[400735232,1767804557184,-300.0,0.00012875,2]
[400735233,1767804557205,-279.0,0.00012875,2]
[400735234,1767804557226,-300.0,0.00012875,2]
[400735235,1767804557246,-191.0,0.00012875,2]
[400735236,1767804557266,-300.0,0.00012875,2]
[400735237,1767804557287,-500.0,0.00012876,2]
[400735238,1767804557307,-206.58822789,0.00012876,2]
[400735239,1767804557328,-500.0,0.00012876,2]
[400735240,1767804557348,-500.0,0.00012876,2]
[400735241,1767804557370,-500.0,0.00012876,2]
[400735242,1767804557391,-500.0,0.00012876,2]
[400735243,1767804557411,-244.434,0.00012888,2]
[400735244,1767804557431,-164.3735124,0.00013012,2]
[400735245,1767804557450,-261.88445837,0.00013013,2]
[400735246,1767804557469,-500.0,0.00013013,2]
[400735247,1767804557488,-599.45180267,0.00013013,2]
[400735248,1767804557507,-500.0,0.00013013,2]
[400735249,1767804557526,-500.0,0.00013013,2]
[400735250,1767804557545,-603.89498635,0.00013013,2]
[400735251,1767804557564,-209.63078805,0.00013013,2]
[400735252,1767804557583,-210.83487892,0.00013013,2]
[400735253,1767804557602,-1723.70116008,0.000131,2]
[400735254,1767804557621,-607.0,0.00013148,2]
[400735255,1767804557640,-287.94099148,0.00013149,2]
[400735256,1767804557660,-500.0,0.00013149,2]
[400735257,1767804557680,-500.0,0.00013149,2]
[400735258,1767804557700,-500.0,0.00013149,2]
[400735259,1767804557721,-500.0,0.00013149,2]
[400735260,1767804557742,-500.0,0.00013149,2]
[400735261,1767804557762,-500.0,0.00013149,2]
[400735262,1767804557782,-482.34879659,0.00013149,2]
[400735263,1767804557802,-500.0,0.00013149,2]
[400735264,1767804557823,-500.0,0.00013149,2]
[400735265,1767804557844,-500.0,0.00013149,2]
[400735266,1767804557864,-500.0,0.00013149,2]
[400735267,1767804557884,-500.0,0.00013149,2]
[400735268,1767804557906,-500.0,0.00013149,2]
[400735269,1767804557930,-500.0,0.00013149,2]
[400735270,1767804557950,-500.0,0.00013149,2]
[400735271,1767804557971,-239.38226423,0.00013149,2]
[400735272,1767804557991,-500.0,0.00013149,2]
[400735273,1767804558012,-500.0,0.00013149,2]
[400735274,1767804558032,-355.5737526,0.00013149,2]
[400735275,1767804558054,-500.0,0.00013149,2]
[400735276,1767804558076,-500.0,0.00013149,2]
[400735277,1767804558096,-500.0,0.00013149,2]
[400735278,1767804558120,-500.0,0.00013149,2]
[400735279,1767804558141,-500.0,0.00013149,2]
[400735280,1767804558163,-500.0,0.00013149,2]
[400735281,1767804558185,-500.0,0.00013149,2]
[400735282,1767804558208,-500.0,0.00013149,2]
[400735283,1767804558229,-500.0,0.00013149,2]
[400735284,1767804558249,-500.0,0.00013149,2]
[400735285,1767804558268,-500.0,0.00013149,2]
[400735286,1767804558288,-500.0,0.00013149,2]
[400735287,1767804558309,-500.0,0.00013149,2]
[400735288,1767804558329,-500.0,0.00013149,2]
[400735289,1767804558349,-364.23381603,0.00013149,2]
[400735290,1767804558369,-500.0,0.00013149,2]
[400735291,1767804558389,-500.0,0.00013149,2]
[400735292,1767804558410,-500.0,0.00013149,2]
[400735294,1767804558430,-500.0,0.00013149,2]
[400735295,1767804558451,-500.0,0.00013149,2]
[400735296,1767804558471,-500.0,0.00013149,2]
[400735297,1767804558494,-500.0,0.00013149,2]
[400735298,1767804558513,-500.0,0.00013149,2]
[400735299,1767804558533,-177.79104538,0.00013149,2]
[400735300,1767804558552,-500.0,0.0001315,2]
[400735301,1767804558572,-500.0,0.0001315,2]
[400735302,1767804558592,-994.68142797,0.0001315,2]
[400735303,1767804558613,-994.68142797,0.0001315,2]
[400735304,1767804558634,-994.68142797,0.0001315,2]
[400735305,1767804558653,-994.68142797,0.0001315,2]
[400735306,1767804558679,-994.68142797,0.0001315,2]
[400735307,1767804558699,-500.0,0.0001315,2]
[400735308,1767804558720,-994.68142797,0.0001315,2]
[400735309,1767804558740,-1074.25594221,0.0001315,2]
[400735310,1767804558761,-1074.25594221,0.0001315,2]
[400735311,1767804558781,-1074.25594221,0.0001315,2]
[400735312,1767804558802,-1074.25594221,0.0001315,2]